Workbook

Sheet Summary
E1: Docket No. 20200139-WS
E2: Exhibit ACC-2
E3: Schedule 1
E4: Page 1 of 1
B7: UTILITIES, INC. OF FLORIDA - WATER
B8: TEST YEAR ENDING DECEMBER 31, 2019
B9: REVENUE REQUIREMENT SUMMARY
C13: Company | D13: Recommended | E13: Recommended
C14: Claim | D14: Adjustment | E14: Position
C15: (A)
A16: 1 | B16: Pro Forma Rate Base | C16: =+'Rate Base'!C26 -> 56913982 | D16: =+E16-C16 -> -2847573 | E16: =+'Rate Base'!F26 -> 54066409 | F16: (B)
A18: 2 | B18: Required Cost of Capital | C18: =+C20/C16 -> 0.07889077239 | D18: =E18-C18 -> -0.01163300962 | E18: =+ROR!G27 -> 0.06725776277 | F18: (C)
A20: 3 | B20: Required Return | C20: 4489988 | D20: =E20-C20 -> -853602.2895 | E20: =(E16*E18) -> 3636385.71
A22: 4 | B22: Operating Income @ Present Rates | C22: 2391589 | D22: =+E22-C22 -> 430370.3229 | E22: =+Income!C32 -> 2821959.323 | F22: (D)
A24: 5 | B24: Operating Income Deficiency | C24: =+C20-C22 -> 2098399 | D24: =D20-D22 -> -1283972.612 | E24: =E20-E22 -> 814426.3875
A26: 6 | B26: Revenue Multiplier | C26: =+C28/C24 -> 1.345715472 | D26: =+C26 -> 1.345715472 | E26: =+'Rev Mul'!D27 -> 1.387315405 | F26: (E)
A28: 7 | B28: Required Revenue Increase | C28: 2823848 | D28: =E28-C28 -> -1693981.726 | E28: =E24*E26 -> 1129866.274
B35: Sources:
B36: (A) UIF Filing, Schedule B-1, Page 1.
B37: (B) Exhibit ACC-2, Schedule 3.
B38: (C) Exhibit ACC-2, Schedule 2.
B39: (D) Exhibit ACC-2, Schedule 8.
B40: (E) Exhibit ACC-2, Schedule 24.
A55: =+'Income Tax'!D23 -> 0.2452182
A56: ='Rev Mul'!D19/'Rev Mul'!#REF! -> 
F313: =B309+#REF!-C309+D308-E313 -> 
F314: =B310+#REF!-C310+D309-E314 -> 

Sheet ROR
G1: Docket No. 20200139-WS
G2: Exhibit ACC-2
G3: Schedule 2
G4: Page 1 of 1
B7: =+Summary!B7 -> UTILITIES, INC. OF FLORIDA - WATER
B8: =+Summary!B8 -> TEST YEAR ENDING DECEMBER 31, 2019
B9: REQUIRED COST OF CAPITAL
D14: Capital | E14: Cost | G14: Weighted
D15: Structure (%) | E15: Rate (%) | G15: Cost (%)
D16: (A) | E16: (B)
A19: 1. | B19: Long-Term Debt | D19: =0.9125*0.5 -> 0.45625 | E19: 0.0578 | G19: =+D19*E19 -> 0.02637125
A20: 2 | B20: Short-Term Debt | D20: =0.05*91.25% -> 0.045625 | E20: 0.0404 | G20: =+D20*E20 -> 0.00184325
A21: 3 | B21: Common Equity | D21: =91.25*0.45% -> 0.410625 | E21: 0.095 | F21: (C) | G21: 0.039009375
A22: 4 | B22: Customer Deposits | D22: =248501/146661161 -> 0.001694388605 | E22: 0.02 | G22: 3.38877721e-05
A23: 5 | B23: Tax Credits - Zero Cost | D23: =73443/146661161 -> 0.0005007665254 | E23: 0 | G23: 0
A24: 6 | B24: Accumulated Deferred Income Taxes | D24: =7156450/146661161 -> 0.048795809 | E24: 0 | G24: 0
A25: 7 | B25: Other Deferred Tax Liability - TCIA | D25: =5353825/146661161 -> 0.03650472261 | E25: 0 | G25: 0
A27: 8 | B27: Total Cost of Capital | D27: =SUM(D19:D25) -> 0.9999956867 | G27: =SUM(G19:G25) -> 0.06725776277
B31: Sources:
B32: (A) Derived from UIF Filing, Schedule D-1, page 1, and recommendations of Mr. Garrett
B33: regarding percentages of long-term debt, short-term debt, and common equity.
B34: (B) Cost rates per UIF Filing, Schedule D-1, page 1 except for cost of equity.
B35: (C) Cost of equity cost rate per Testimony of Mr. Garrett.

Sheet Rate Base
E1: Docket No. 20200139-WS
E2: Exhibit ACC-2
E3: Schedule 3
E4: Page 1 of 1
B7: =+Summary!B7 -> UTILITIES, INC. OF FLORIDA - WATER
B8: =+Summary!B8 -> TEST YEAR ENDING DECEMBER 31, 2019
B9: RATE BASE SUMMARY
C13: Company | D13: Test Year | F13: Recommended
C14: Claim | D14: Adjustment | F14: Position
C15: (A)
A16: 1 | B16: Utility Plant in Service | C16: 119062759 | D16: =+'Gross Plant'!C17 -> -481645 | E16: (B) | F16: =+C16+D16 -> 118581114
A17: 2 | B17: Utility Land and Land Rights | C17: 296859 | D17: 0 | F17: =+C17+D17 -> 296859
A18: 3 | B18: Less: Non -Used and Useful Plant | C18: 0 | D18: 0 | F18: 0
A20: 4 | B20: Accumulated Depreciation | C20: -46148164 | D20: ='Acc Dep'!C17 -> -62729 | E20: (C) | F20: =+C20+D20 -> -46210893
A21: 5 | B21: Contributions in Aid of Construction | C21: -41216765 | D21: =CIAC!C12 -> -71685 | E21: (D) | F21: =+C21+D21 -> -41288450
A22: 6 | B22: Accumulated Amortization of CIAC | C22: 20804928 | D22: =+CIAC!C14 -> 71685 | E22: (D) | F22: =+C22+D22 -> 20876613
A23: 7 | B23: Advances for Construction | C23: -36767 | D23: 0 | F23: =+C23+D23 -> -36767
A24: 8 | B24: Working Capital Allowance | C24: 4151132 | D24: =+'Working Capital'!E17 -> -2303199 | E24: (E) | F24: =+C24+D24 -> 1847933
A26: 9 | B26: Total Rate Base | C26: =SUM(C16:C24) -> 56913982 | D26: =SUM(D16:D24) -> -2847573 | F26: =SUM(F16:F24) -> 54066409
B30: Sources:
B31: (A)UIF Filing, Schedule A-1.
B32: (B) Exhibit ACC-2, Schedule 4.
B33: (C) Exhibit ACC-2, Schedule 5.
B34: (D) Exhibit ACC-2, Schedule 6.
B35: (E) Exhibit ACC-2, Schedule 7.

Sheet Gross Plant
C1: Docket No. 20200139-WS
C2: Exhibit ACC-2
C3: Schedule 4
C4: Page 1 of 2
B7: =+'Rate Base'!B7 -> UTILITIES, INC. OF FLORIDA - WATER
B8: =+'Rate Base'!B8 -> TEST YEAR ENDING DECEMBER 31, 2019
B9: UTILITY PLANT-IN-SERVICE
A13: 1 | B13: Adjustments to Pro Forma Additions | C13: -558065 | D13: (A)
A15: 2 | B15: Adjustments to Pro Forma Retirements | C15: 76420 | D15: (A)
A17: 3 | B17: Total Pro Forma Adjustments to Utility Plant | C17: =+C13+C15 -> -481645
B21: Sources:
B22: (A) Exhibit ACC-2, Schedule 4, page 2 of 2.

Sheet Plt Adj WP
N1: Docket No. 20200139-WS
N2: Exhibit ACC-2
N3: Schedule 4
N4: Page 2 of 2
B7: =+'Rate Base'!B7 -> UTILITIES, INC. OF FLORIDA - WATER
B8: TEST YEAR ENDING DECEMBER 31 2019
B9: UTILITY PLANT-IN-SERVICE ADDITIONS
A11: Docket# 20200139-WS
I13: Base Project | J13: Cost Per | K13: Accumulated | L13: Book | N13: Retirement | O13: CIAC
A14: Job Description | B14: Co | C14: PCF# | D14: County | E14: System | F14: Retirement? | G14: CIAC? | H14: System | I14: Cost | J14: RR Schedule | K14: Depreciation | L14: Depreciation | M14: Retirement | N14: Depreciation | O14: Amortization
A16: E.E. Williamson Utility Relocations | B16: 255 | C16: 28 | D16: Seminole | E16: Sanlando | F16: Yes | G16: Yes | H16: Water | I16: 333075 | J16: 347142 | K16: 8073.06 | L16: 8073.06 | M16: 71685.43307 | N16: =+O16 -> 1667 | O16: 1667
A17: GST (ground storage tanks) Deficiency Corrections | B17: 255 | C17: 31 | D17: Seminole | E17: Sanlando | F17: No | H17: Water | I17: 180919 | J17: 188923 | K17: 5106.03 | L17: 5106.03
A18: Eng Northwestern Bridge WM Replacement | B18: 252 | C18: 45 | D18: Seminole | E18: UIF - Wekiva? | F18: Yes | G18: No | H18: Water | I18: 22000 | J18: 22000 | K18: 511.63 | L18: 511.63 | M18: 4734.908136 | N18: 110
A20: Total Water | J20: =SUM(J16:J18) -> 558065 | K20: =SUM(K16:K18) -> 13690.72 | L20: 13690.72 | M20: =SUM(M16:M18) -> 76420.34121 | N20: =SUM(N16:N18) -> 1777 | O20: 1667

Sheet Acc Dep
C1: Docket No. 20200139-WS
C2: Exhibit ACC-2
C3: Schedule 5
C4: Page 1 of 1
B7: =+'Rate Base'!B7 -> UTILITIES, INC. OF FLORIDA - WATER
B8: =+'Rate Base'!B8 -> TEST YEAR ENDING DECEMBER 31, 2019
B9: ACCUMULATED DEPRECIATION
A13: 1 | B13: Adjustments Related to Additions | C13: 13691 | D13: (A)
A15: 2 | B15: Adjustments Related to Retirements | C15: -76420 | D15: (A)
A17: 3 | B17: Total Pro Forma Adjustments to Acc. Dep. | C17: =+C13+C15 -> -62729
B21: Sources:
B22: (A) Exhibit ACC-2, Schedule 4, page 2 of 2.

Sheet CIAC
C1: Docket No. 20200139-WS
C2: Exhibit ACC-2
C3: Schedule 6
C4: Page 1 of 1
B7: =+'Gross Plant'!B7 -> UTILITIES, INC. OF FLORIDA - WATER
B8: =+'Gross Plant'!B8 -> TEST YEAR ENDING DECEMBER 31, 2019
B9: CONTRIBUTIONS IN AID OF CONSTRUCTION
A12: 1 | B12: Retirement Adjustments Associated with CIAC | C12: -71685 | D12: (A)
A14: 2 | B14: Associated Accumulated Amortization of CIAC | C14: =-C12 -> 71685 | D14: (A)
B17: Sources:
B18: (A) Exhibit ACC-2, Schedule 4, page 2 of 2.

Sheet Working Capital
E1: Docket No. 20200139-WS
E2: Exhibit ACC-2
E3: Schedule 7
E4: Page 1 of 1
B7: =+'Gross Plant'!B7 -> UTILITIES, INC. OF FLORIDA - WATER
B8: =+'Gross Plant'!B8 -> TEST YEAR ENDING DECEMBER 31, 2019
B9: WORKING CAPITAL ADJUSTMENTS
A13: 1 | B13: Presumed Cash Balance | E13: -2355199 | F13: (A)
A15: 2 | B15: Chlorine Dioxide Pilot Study | E15: 52000 | F15: (A)
A17: 3 | B17: Recommended Adjustments | E17: =E13+E15 -> -2303199
B21: Sources:
B22: (A) UIF Filing, Schedule A-3, page 5.

Sheet Income
C1: Docket No. 20200139-WS
C2: Exhibit ACC-2
C3: Schedule 8
C4: Page 1 of 1
B7: =+Summary!B7 -> UTILITIES, INC. OF FLORIDA - WATER
B8: =+Summary!B8 -> TEST YEAR ENDING DECEMBER 31, 2019
B9: OPERATING INCOME SUMMARY
D12: Schedule No.
A13: 1 | B13: Company Claim | C13: =+Summary!C22 -> 2391589 | D13: 1
B15: Recommended Adjustments:
A17: 2 | B17: Salary and Wage Increase Expense | C17: =+'Emp Increase'!D29 -> 21791.1091 | D17: 9
A18: 3 | B18: Additional Employees Expense | C18: =+'New Emp'!D23 -> 81079.41574 | D18: =1+D17 -> 10
A19: 4 | B19: Severance Expense | C19: =+Severance!D21 -> 22431.96414 | D19: =1+D18 -> 11
A20: 5 | B20: Incentive Compensation Expense | C20: =+'Inc Comp'!D33 -> 78013.57005 | D20: 12
A21: 6 | B21: Payroll Tax Expense | C21: =+'Payroll Tax'!D28 -> 13236.58914 | D21: 13
A22: 7 | B22: Non-Qualified Retirement Plan Expense | C22: =+NonQual!D24 -> 21580.98987 | D22: 14
A23: 8 | B23: Truck Fleet Expense | C23: =+Truck!D16 -> 5231.392656 | D23: 15
A24: 9 | B24: Lobbying Expense | C24: =+Lobbying!D20 -> 18034.90563 | D24: 16
A25: 10 | B25: Holiday Party Expense | C25: =+'Holiday Party'!D20 -> 1998.806068 | D25: 17
A26: 11 | B26: Depreciation Expense - Plant | C26: =+'Dep Plant'!D22 -> 10250.69163 | D26: 18
A27: 12 | B27: Property Tax Expense - Plant | C27: =+'Property Tax Plant'!D20 -> 6454.091531 | D27: 19
A28: 13 | B28: Excess Deferred Income Tax Amortization | C28: =+EDIT!D27 -> 127997.2597 | D28: 20
A29: 14 | B29: State Income Tax Expense | C29: =+SIT!D24 -> 10097.96148 | D29: 21
A30: 15 | B30: Interest Synchronization | C30: ='Int Syn'!D26 -> 12171.57621 | D30: 22
A32: 16 | B32: Operating Income | C32: =SUM(C13:C31) -> 2821959.323

Sheet Emp Increase
D1: Docket No. 20200139-WS
D2: Exhibit ACC-2
D3: Schedule 9
D4: Page 1 of 1
B7: =+Summary!B7 -> UTILITIES, INC. OF FLORIDA - WATER
B8: =+Summary!B8 -> TEST YEAR ENDING DECEMBER 31, 2019
B9: SALARY AND WAGE INCREASE EXPENSE
A13: 1 | B13: Salaries and Wages | D13: 2847573 | E13: (A)
A15: 2 | B15: Salaries and Wages Officers | D15: 216514 | E15: (A)
A17: 3 | B17: Pensions and Benefits | D17: 785355 | E17: (A)
A19: 4 | B19: Total Test Year Costs | D19: =SUM(D13:D17) -> 3849442
A21: 5 | B21: Increase @ 3.0% | D21: =0.03*D19 -> 115483.26 | E21: (B)
A23: 6 | B23: Company Claim | D23: =106784+8119+29451 -> 144354 | E23: (C)
A25: 7 | B25: Recommended Adjustment | D25: =+D23-D21 -> 28870.74
A27: 8 | B27: Income Taxes @ | C27: =+'New Emp'!C21 -> 0.2452182 | D27: =+D25*C27 -> 7079.630895
A29: 9 | B29: Operating Income Impact | D29: =+D25-D27 -> 21791.1091
B34: Souces:
B35: (A) UIF Filing, Schedule B-5, page 1.
B36: (B) Line 4 X .03.
B37: (C) UIF Filing, Schedule B-3, page 2.

Sheet New Emp
C1: Docket No. 20200139-WS
C2: Exhibit ACC-2
C3: Schedule 10
C4: Page 1 of 1
B7: =+Summary!B7 -> UTILITIES, INC. OF FLORIDA - WATER
B8: =+Summary!B8 -> TEST YEAR ENDING DECEMBER 31, 2019
B9: ADDITIONAL EMPLOYEES EXPENSE
A13: 1 | B13: Salaries and Wages | D13: 73182 | E13: (A)
A15: 2 | B15: Employee Pensions and Benefits | D15: 32322 | E15: (A)
A17: 3 | B17: Telephone Expense | D17: 1917 | E17: (A)
A19: 4 | B19: Recommended Adjustment | D19: =SUM(D13:D17) -> 107421
A21: 5 | B21: Income Taxes @ | C21: =+'Income Tax'!D23 -> 0.2452182 | D21: =+D19*C21 -> 26341.58426
A23: 6 | B23: Operating Income Impact | D23: =+D19-D21 -> 81079.41574
B28: Souces:
B29: (A) Company Filing, Schedule B-3, page 2.

Sheet Severance
D1: Docket No. 20200139-WS
D2: Exhibit ACC-2
D3: Schedule 11
D4: Page 1 of 1
B7: =+Summary!B7 -> UTILITIES, INC. OF FLORIDA - WATER
B8: =+Summary!B8 -> TEST YEAR ENDING DECEMBER 31, 2019
B9: SEVERANCE EXPENSE
A13: 1 | B13: Severance Claim | D13: 57000 | E13: (A)
A15: 2 | B15: Allocation to Water (%) | D15: 0.5214 | E15: (A)
A17: 3 | B17: Allocation to Water ($) | D17: =+D15*D13 -> 29719.8
A19: 4 | B19: Income Taxes @ | C19: =+'Emp Increase'!C27 -> 0.2452182 | D19: =+D17*C19 -> 7287.83586
A21: 5 | B21: Operating Income Impact | D21: =+D17-D19 -> 22431.96414
B25: Sources:
B26: (A) Response to OPC IRR-15.

Sheet Inc Comp
D1: Docket No. 20200139-WS
D2: Exhibit ACC-2
D3: Schedule 12
D4: Page 1 of 1
B7: =+Summary!B7 -> UTILITIES, INC. OF FLORIDA - WATER
B8: =+Summary!B8 -> TEST YEAR ENDING DECEMBER 31, 2019
B9: INCENTIVE COMPENSATION EXPENSE
A13: 1 | B13: UIF Expense - Non-Officers | D13: 92500 | E13: (A)
A15: 2 | B15: WSC Expense - Non Officers @ 22% | D15: =45605*0.22 -> 10033.1 | E15: (B)
A17: 3 | B17: WSC/UIF Officers | D17: 244000 | E17: (C)
A19: 4 | B19: CII Incentive Compensation @ 10.3% | D19: =0.1*499345 -> 49934.5 | E19: (D)
A21: 5 | B21: Total Incentive Compensation | D21: =SUM(D13:D19) -> 396467.6
A23: 6 | B23: Recommended Adjustment | D23: 0.5 | E23: (E)
A25: 7 | B25: Total Recommended Adjustment | D25: =+D21*D23 -> 198233.8
A27: 8 | B27: Allocation to Water (%) | D27: 0.5214 | E27: (F)
A29: 9 | B29: Allocation to Water ($) | D29: =+D25*D27 -> 103359.1033
A31: 10 | B31: Income Taxes @ | C31: =+Summary!A55 -> 0.2452182 | D31: =+C31*D29 -> 25345.53327
A33: 11 | B33: Operating Income Impact | D33: =+D29-D31 -> 78013.57005
B37: Sources:
B38: (A) Response to OPC IRR-17.
B39: (B) Represents 22% of total cost of $45,605, per the response to OPC IRR-17.
B40: (C) Response to OPC IRR-18.
B41: (D) Represents 10.3% (per OPC IRR-18) of amount shown in the response
B42: to OPC IRR-11.
B43: (E) Recommendation of Ms. Crane.
B44: (F) Allocation per the response to OPC IRR-18.

Sheet Payroll Tax
D1: Docket No. 20200139-WS
D2: Exhibit ACC-2
D3: Schedule 13
D4: Page 1 of 1
B7: =+Summary!B7 -> UTILITIES, INC. OF FLORIDA - WATER
B8: =+Summary!B8 -> TEST YEAR ENDING DECEMBER 31, 2019
B9: PAYROLL TAX EXPENSE
A12: 1 | B12: Salary and Wage Increase Expense Adjustment | D12: =+(('Emp Increase'!D13+'Emp Increase'!D15)/'Emp Increase'!D19)*'Emp Increase'!D25 -> 22980.5928 | E12: (A)
A14: 2 | B14: Additional Employees Expense Adjustment | D14: =+'New Emp'!D13 -> 73182 | E14: (B)
A16: 3 | B16: Severance Expense Adjustment | D16: =+Severance!D17 -> 29719.8 | E16: (C)
A18: 4 | B18: Incentive Compensation Expense Adjustment | D18: =+'Inc Comp'!D29 -> 103359.1033 | E18: (D)
A20: 5 | B20: Total Expense Adjustments | D20: =SUM(D12:D18) -> 229241.4961
A22: 6 | B22: Statutory Payroll Tax Rate | D22: 0.0765
A24: 7 | B24: Recommended Payroll Tax Adjustment | D24: =+D20*D22 -> 17536.97445
A26: 8 | B26: Income Taxes @ | C26: =+Summary!A55 -> 0.2452182 | D26: =+Summary!A55*D24 -> 4300.385309
A28: 9 | B28: Operating Income Impact | D28: =+D24-D26 -> 13236.58914
B32: Sources:
B33: (A) Derived from Exhibit ACC-2, Schedule 9.
B34: (B) Exhibit ACC-2, Schedule 10.
B35: (C) Exhibit ACC-2, Schedule 11.
B36: (D) Exhibit ACC-2, Schedule 12.

Sheet NonQual
D1: Docket No. 20200139-WS
D2: Exhibit ACC-2
D3: Schedule 14
D4: Page 1 of 1
B7: =+Summary!B7 -> UTILITIES, INC. OF FLORIDA - WATER
B8: =+Summary!B8 -> TEST YEAR ENDING DECEMBER 31, 2019
B9: NON-QUALIFIED RETIREMENT PLAN EXPENSE
A12: 1 | B12: UIF Non-Qualfied Expense | D12: =21581+5272 -> 26853 | E12: (A)
A14: 2 | B14: WSC Shared Services Non-Qualified Expense | D14: =(96249+30954)*0.22 -> 27984.66 | E14: (B)
A16: 3 | B16: Total Expense Adjustments | D16: =SUM(D12:D14) -> 54837.66
A18: 4 | B18: Allocation to Water (%) | D18: 0.5214 | E18: (C)
A20: 5 | B20: Allocation to Water ($) | D20: =+D16*D18 -> 28592.35592
A22: 6 | B22: Income Taxes @ | C22: =+Summary!A55 -> 0.2452182 | D22: =+Summary!A55*D20 -> 7011.366053
A24: 7 | B24: Operating Income Impact | D24: =+D20-D22 -> 21580.98987
B28: Sources:
B29: (A) Response to OPC IRR-11.
B30: (B) Represents 22% allocation of the amounts per the response to
B31: OPC IRR-11.
B32: (C) Allocation per the response to OPC IRR-18.

Sheet Truck
D1: Docket No. 20200139-WS
D2: Exhibit ACC-2
D3: Schedule 15
D4: Page 1 of 1
B7: =+Summary!B7 -> UTILITIES, INC. OF FLORIDA - WATER
B8: =+Summary!B8 -> TEST YEAR ENDING DECEMBER 31, 2019
B9: TRUCK FLEET EXPENSE
A12: 1 | B12: Recommended Adjustment | D12: 6931 | E12: (A)
A14: 2 | B14: Income Taxes @ | C14: =+Summary!A55 -> 0.2452182 | D14: =+Summary!A55*D12 -> 1699.607344
A16: 3 | B16: Operating Income Impact | D16: =+D12-D14 -> 5231.392656
B22: Sources:
B23: (A) UIF Filing, Schedule B-3, page 2.

Sheet Lobbying
D1: Docket No. 20200139-WS
D2: Exhibit ACC-2
D3: Schedule 16
D4: Page 1 of 1
B7: =+Summary!B7 -> UTILITIES, INC. OF FLORIDA - WATER
B8: =+Summary!B8 -> TEST YEAR ENDING DECEMBER 31, 2019
B9: LOBBYING EXPENSE
A12: 1 | B12: Lobbying Costs in Filing | D12: 45827 | E12: (A)
A14: 2 | B14: Allocation to Water (%) | D14: 0.5214 | E14: (B)
A16: 3 | B16: Allocation to Water ($) | D16: =+D12*D14 -> 23894.1978
A18: 4 | B18: Income Taxes @ | C18: =+Summary!A55 -> 0.2452182 | D18: =+Summary!A55*D16 -> 5859.292175
A20: 5 | B20: Operating Income Impact | D20: =+D16-D18 -> 18034.90563
B24: Sources:
B25: (A) Response to OPC IRR-140.
B26: (B) Allocation per the response to OPC IRR-33.

Sheet Holiday Party
D1: Docket No. 20200139-WS
D2: Exhibit ACC-2
D3: Schedule 17
D4: Page 1 of 1
B7: =+Summary!B7 -> UTILITIES, INC. OF FLORIDA - WATER
B8: =+Summary!B8 -> TEST YEAR ENDING DECEMBER 31, 2019
B9: HOLIDAY PARTY EXPENSE
A12: 1 | B12: Holiday Party Costs in Filing | D12: 5079 | E12: (A)
A14: 2 | B14: Allocation to Water (%) | D14: 0.5214 | E14: (B)
A16: 3 | B16: Allocation to Water ($) | D16: =+D12*D14 -> 2648.1906
A18: 4 | B18: Income Taxes @ | C18: =+Summary!A55 -> 0.2452182 | D18: =+Summary!A55*D16 -> 649.3845322
A20: 5 | B20: Operating Income Impact | D20: =+D16-D18 -> 1998.806068
B24: Sources:
B25: (A) Response to OPC IRR-38.
B26: (B) Allocation per the response to OPC IRR-38.

Sheet Dep Plant
D1: Docket No. 20200139-WS
D2: Exhibit ACC-2
D3: Schedule 18
D4: Page 1 of 1
B7: =+Summary!B7 -> UTILITIES, INC. OF FLORIDA - WATER
B8: =+Summary!B8 -> TEST YEAR ENDING DECEMBER 31, 2019
B9: DEPRECIATION EXPENSE
A12: 1 | B12: Reductions Related to Plant Additions | D12: 13691 | E12: (A)
A14: 2 | B14: Reductions Related to Retirements | D14: -1777 | E14: (A)
A16: 3 | B16: Reductions to Related Retirements - CIAC | D16: 1667 | E16: (A)
A18: 4 | B18: Recommended Adjustment | D18: =+D12+D14+D16 -> 13581
A20: 5 | B20: Income Taxes @ | C20: =+'Income Tax'!D23 -> 0.2452182 | D20: =+Summary!A55*D18 -> 3330.308374
A22: 6 | B22: Operating Income Impact | D22: =+D18-D20 -> 10250.69163
B27: Sources:
B28: (A) Exhibit ACC-2, Schedule 4, page 2 of 2.

Sheet Property Tax Plant
D1: Docket No. 20200139-WS
D2: Exhibit ACC-2
D3: Schedule 19
D4: Page 1 of 1
B7: =+Summary!B7 -> UTILITIES, INC. OF FLORIDA - WATER
B8: =+Summary!B8 -> TEST YEAR ENDING DECEMBER 31, 2019
B9: PROPERTY TAX EXPENSE
A12: 1 | B12: Reductions to Net Plant | D12: =-'Rate Base'!D16-'Rate Base'!D20 -> 544374 | E12: (A)
A14: 2 | B14: Net Mil Rate | D14: =61087/3888951 -> 0.01570783484 | E14: (B)
A16: 3 | B16: Recommended Adjustment | D16: =+D12*D14 -> 8550.936882
A18: 4 | B18: Income Taxes @ | C18: =+'Income Tax'!D23 -> 0.2452182 | D18: =+Summary!A55*D16 -> 2096.845351
A20: 5 | B20: Operating Income Impact | D20: =+D16-D18 -> 6454.091531
B24: Sources:
B25: (A) Exhibit ACC-2, Schedule 2.
B26: (B) UIF Filing, Schedule B-3, page 5.

Sheet EDIT
D1: Docket No. 20200139-WS
D2: Exhibit ACC-2
D3: Schedule 20
D4: Page 1 of 1
B7: =+Summary!B7 -> UTILITIES, INC. OF FLORIDA - WATER
B8: =+Summary!B8 -> TEST YEAR ENDING DECEMBER 31, 2019
B9: EXCESS DEFERRED INCOME TAX AMORTIZATION
A13: 1 | B13: Unprotected Excess Deferred Income Taxes | D13: 360233 | E13: (A)
A15: 2 | B15: Recommended Amortization Period | D15: 5 | E15: (B)
A17: 3 | B17: Recommended Annual Amortization | D17: =+D13/D15 -> 72046.6
A19: 4 | B19: Annual Amortization of Protected EDIT | D19: =100042+157755 -> 257797 | E19: (A)
A21: 5 | B21: Total Annual Amortization | D21: =+D17+D19 -> 329843.6
A23: 6 | B23: Allocation to Water (%) | D23: =13979/36023.3 -> 0.3880543981 | E23: (C)
A25: 7 | B25: Allocation to Water ($) | D25: =+D21*D23 -> 127997.2597
A27: 8 | B27: Impact on Operating Income at Present Rates | D27: =+D25 -> 127997.2597
B30: Sources:
B31: (A) UIF Filing, Schedule B-3, page 6.
B32: (B) Recommendation of Ms. Crane.
B33: (C) Based on allocation per UIF Filing, Schedule B-3, page 6.

Sheet SIT
D1: Docket No. 20200139-WS
D2: Exhibit ACC-2
D3: Schedule 21
D4: Page 1 of 1
B7: =+Summary!B7 -> UTILITIES, INC. OF FLORIDA - WATER
B8: =+Summary!B8 -> TEST YEAR ENDING DECEMBER 31, 2019
B9: STATE INCOME TAX EXPENSE
A12: 1 | B12: State Taxable Income | D12: 1226666 | E12: (A)
A14: 2 | B14: State Tax Rate | D14: 0.04458 | E14: (B)
A16: 3 | B16: State Income Taxes | D16: =+D12*D14 -> 54684.77028
A18: 4 | B18: Company Claim | D18: 67467 | E18: (A)
A20: 5 | B20: Recommended Adjustment | D20: =+D18-D16 -> 12782.22972
A22: 6 | B22: Federal Income Taxes @ 21% | D22: =+D20*0.21 -> 2684.268241 | E22: (C)
A24: 7 | B24: Operating Income Impact | D24: =+D20-D22 -> 10097.96148
B28: Sources:
B29: (A) UIF Filing, Schedule C-2, page 1.
B30: (B) Current State Income Tax Rate.
B31: (C) Federal Income Tax Rate per UIF Filing, Schedule C-2, page 1.

Sheet Int Syn
D1: Docket No. 20200139-WS
D2: Exhibit ACC-2
D3: Schedule 22
D4: Page 1 of 1
B7: =+Summary!B7 -> UTILITIES, INC. OF FLORIDA - WATER
B8: =+Summary!B8 -> TEST YEAR ENDING DECEMBER 31, 2019
B9: INTEREST SYNCHRONIZATION
A14: 1. | B14: Recommended Rate Base | D14: =+'Rate Base'!F26 -> 54066409 | E14: (A)
A16: 2. | B16: Weighted Interest Cost | D16: =+ROR!G19+ROR!G20 -> 0.0282145 | E16: (B)
A18: 3. | B18: Pro Forma Interest Expense | D18: =D14*D16 -> 1525456.697
A20: 4. | B20: Company Claim | D20: 1475821 | E20: (C)
A22: 5. | B22: Increase to Pro Forma Interest Expense | D22: =+D18-D20 -> 49635.69673
A24: 6 | B24: Decrease to Income Taxes @ | C24: =Summary!A55 -> 0.2452182 | D24: =+C24*-D22 -> -12171.57621
A26: 7 | B26: Increase to Operating Income | D26: =-D24 -> 12171.57621
B29: Sources:
B30: (A) Exhibit ACC-2, Schedule 3.
B31: (B) Exhibit ACC-2, Schedule 2.
B32: (C) UIF Filing, Schedule C-2, page 1.

Sheet Income Tax
D1: Docket No. 20200139-WS
D2: Exhibit ACC-2
D3: Schedule 23
D4: Page 1 of 1
B7: =+'Rate Base'!B7 -> UTILITIES, INC. OF FLORIDA - WATER
B8: =+'Rate Base'!B8 -> TEST YEAR ENDING DECEMBER 31, 2019
B9: INCOME TAX RATE
A13: 1. | B13: Revenue | D13: 1
A15: 2 | B15: State Income Taxes @ | C15: 0.04458 | D15: =+C15 -> 0.04458 | E15: (A)
A17: 3 | B17: Federal Taxable Income | D17: =D13-D15 -> 0.95542
A19: 4 | B19: Income Taxes @ | C19: 0.21 | D19: =+C19*D17 -> 0.2006382 | E19: (A)
A21: 5 | B21: Operating Income | D21: =D17-D19 -> 0.7547818
A23: 6 | B23: Total Tax Rate | D23: =D19+D15 -> 0.2452182 | E23: (B)
B28: Sources:
B29: (A) Tax rates per Company Filing, Schedule C-2, page 1.
B30: (B) Line 1 - Line 5.

Sheet Rev Mul
D1: Docket No. 20200139-WS
D2: Exhibit ACC-2
D3: Schedule 24
D4: Page 1 of 1
B7: =+Summary!B7 -> UTILITIES, INC. OF FLORIDA - WATER
B8: =+Summary!B8 -> TEST YEAR ENDING DECEMBER 31, 2019
B9: REVENUE MULTIPLIER
A13: 1. | B13: Revenue | D13: 1
A15: 2 | B15: Regulatory Assessment | D15: 0.045 | E15: (A)
A17: 3 | B17: Taxable Income | D17: =+D13-D15 -> 0.955
A19: 4 | B19: State Income Taxes @ | C19: =+'Income Tax'!C15 -> 0.04458 | D19: =+C19*D17 -> 0.0425739 | E19: (B)
A21: 4 | B21: Federal Taxable Income | D21: =D17-D19 -> 0.9124261
A23: 5 | B23: Income Taxes @ | C23: =+'Income Tax'!C19 -> 0.21 | D23: =+C23*D21 -> 0.191609481 | E23: (B)
A25: 6 | B25: Operating Income | D25: =D21-D23 -> 0.720816619
A27: 7 | B27: Revenue Multiplier | D27: =+D13/D25 -> 1.387315405 | E27: (C)
B30: Sources:
B31: (A) Rate per UIF Filing, Schedule B-3, page 5.
B32: (B) Tax rates per Company Filing, Schedule C-2, page 1.
B33: (C) Line 1 / Line 6.

Sheet RR Summary
D1: Docket No. 20200139-WS
D2: Exhibit ACC-2
D3: Schedule 25
D4: Page 1 of 1
B6: =+Summary!B7 -> UTILITIES, INC. OF FLORIDA - WATER
B7: =+'Rev Mul'!B8 -> TEST YEAR ENDING DECEMBER 31, 2019
B8: REVENUE REQUIREMENT IMPACT OF ADJUSTMENTS
A12: 1 | B12: Capital Structure/Cost of Capital | D12: =(Summary!C16*Summary!D18*Summary!E26) -> -918515.0325
B14: Rate Base Adjustments:
A15: 2 | B15: =+'Rate Base'!B16 -> Utility Plant in Service | D15: =-Summary!$E$18*Summary!$E$26*+-('Rate Base'!D16) -> -44941.20182
A16: 3 | B16: =+'Rate Base'!B20 -> Accumulated Depreciation | D16: =-Summary!$E$18*Summary!$E$26*+-('Rate Base'!D20) -> -5853.100622
A17: 4 | B17: =+'Rate Base'!B21 -> Contributions in Aid of Construction | D17: =-Summary!$E$18*Summary!$E$26*+-('Rate Base'!D21) -> -6688.764656
A18: 5 | B18: =+'Rate Base'!B22 -> Accumulated Amortization of CIAC | D18: =-Summary!$E$18*Summary!$E$26*+-('Rate Base'!D22) -> 6688.764656
A19: 6 | B19: =+'Rate Base'!B24 -> Working Capital Allowance | D19: =-Summary!$E$18*Summary!$E$26*+-('Rate Base'!D24) -> -214906.2714
B21: Operating Income Adjustments
A22: 7 | B22: =+Income!B17 -> Salary and Wage Increase Expense | D22: =+Summary!$E$26*-Income!C17 -> -30231.14136
A23: 8 | B23: =+Income!B18 -> Additional Employees Expense | D23: =+Summary!$E$26*-Income!C18 -> -112482.7225
A24: 9 | B24: =+Income!B19 -> Severance Expense | D24: =+Summary!$E$26*-Income!C19 -> -31120.20942
A25: 10 | B25: =+Income!B20 -> Incentive Compensation Expense | D25: =+Summary!$E$26*-Income!C20 -> -108229.4276
A26: 11 | B26: =+Income!B21 -> Payroll Tax Expense | D26: =+Summary!$E$26*-Income!C21 -> -18363.32403
A27: 12 | B27: =+Income!B22 -> Non-Qualified Retirement Plan Expense | D27: =+Summary!$E$26*-Income!C22 -> -29939.63971
A28: 13 | B28: =+Income!B23 -> Truck Fleet Expense | D28: =+Summary!$E$26*-Income!C23 -> -7257.591623
A29: 14 | B29: =+Income!B24 -> Lobbying Expense | D29: =+Summary!$E$26*-Income!C24 -> -25020.10241
A30: 15 | B30: =+Income!B25 -> Holiday Party Expense | D30: =+Summary!$E$26*-Income!C25 -> -2772.97445
A31: 16 | B31: =+Income!B26 -> Depreciation Expense - Plant | D31: =+Summary!$E$26*-Income!C26 -> -14220.94241
A32: 17 | B32: =+Income!B27 -> Property Tax Expense - Plant | D32: =+Summary!$E$26*-Income!C27 -> -8953.860609
A33: 18 | B33: =+Income!B28 -> Excess Deferred Income Tax Amortization | D33: =+Summary!$E$26*-Income!C28 -> -177572.5702
A34: 19 | B34: =+Income!B29 -> State Income Tax Expense | D34: =+Summary!$E$26*-Income!C29 -> -14009.05752
A35: 20 | B35: =+Income!B30 -> Interest Synchronization | D35: =+Summary!$E$26*-Income!C30 -> -16885.81518
A36: 21 | B36: Revenue Multiplier | D36: =+(Summary!E26-Summary!C26)*Summary!C24 -> 87293.25936
A38: 22 | B38: Total Recommended Adjustments | D38: =SUM(D12:D36) -> -1693981.726
A40: 23 | B40: Company Claim | D40: =Summary!C28 -> 2823848
A42: 24 | B42: Recommended Revenue Requirement Deficiency | D42: =+D40+D38 -> 1129866.274
